Cogmind - Beta 10.2 @@@ ROGUE MODE // 2020.11.03 @ 14:34:25 // Halloween2020/ForbiddenLore Player: dark Result: Destroyed by D-53 Grenadier with Mini Grenade Launcher Performance ------------- Evolutions (1) 500 Regions Visited (3) 600 Robots Destroyed (20) 100 Value Destroyed (486) 486 Prototype IDs (3) 60 Alien Tech Used (0) 0 Bonus (0) 0 TOTAL SCORE: 1746 Bonus ------- None Cogmind --------- Core Integrity 0/400 Matter 171/300 Energy 52/280 System Corruption 0% Temperature Cool (0) Movement Core (300) Ox5 Location -9/Mines Parts ------- > --- POWER (1) -------- Heavy Ion Engine > --- PROPULSION (2) --- (None) > --- UTILITY (4) ------ Small Storage Unit > --- WEAPON (2) ------- Heavy Assault Rifle Shotgun > --- INVENTORY (6) ---- Heavy Assault Rifle Datajack Peak State ------------ > --- POWER ------------ Heavy Ion Engine > --- PROPULSION ------- Light Treads Compact Wheel > --- UTILITY ---------- Small Storage Unit Sensor Array Core Shielding > --- WEAPON ----------- Improved EM Shotgun Shotgun > --- INVENTORY -------- Heavy Ion Engine Light Treads Heavy Assault Rifle Heavy Assault Rifle Shotgun Datajack [Rating: 14] Favorites ----------- Power Improved Ion Engine Engine Improved Ion Engine Propulsion Compact Wheel Treads Light Treads Wheel Compact Wheel Utility Small Storage Unit Device Sensor Array Storage Small Storage Unit Protection Core Shielding Weapon Shotgun Energy Gun EM Pulse Gun Ballistic Gun Shotgun Build | -11 -10 -9 -9 ------- Run | Scr Mat Mat Min Slots Evolved 2 | . . 2 . Power . | . . . . Propulsion . | . . . . Utility 2 | . . 2 . Weapon . | . . . . Parts Attached 27 | 7 3 12 5 Power 6 | 2 1 2 1 Engine 6 | 2 1 2 1 Core . | . . . . Reactor . | . . . . Propulsion 4 | 2 . 1 1 Treads 2 | . . 1 1 Leg . | . . . . Wheel 2 | 2 . . . Hover . | . . . . Flight . | . . . . Utility 3 | 1 1 1 . Device 1 | . 1 . . Storage 1 | 1 . . . Processor . | . . . . Hackware . | . . . . Protection 1 | . . 1 . Artifact . | . . . . Weapon 14 | 2 1 8 3 Energy Gun 5 | 2 1 2 . Energy Cannon . | . . . . Ballistic Gun 9 | . . 6 3 Ballistic Cannon . | . . . . Launcher . | . . . . Special Weapon . | . . . . Impact Weapon . | . . . . Slashing Weapon . | . . . . Piercing Weapon . | . . . . Special Melee Weapon . | . . . . Unidentified Prototypes 3 | . . 3 . Parts Lost 9 | . 1 1 7 Power 1 | . . . 1 Propulsion 4 | . . 1 3 Utility 2 | . . . 2 Weapon 2 | . 1 . 1 Highest Loss Streak 7 | . 1 1 7 Average Slot Usage (%) 86 | . 98 85 66 Engine 11 | . 14 11 11 Treads 7 | . . 8 8 Wheel 15 | . 28 12 5 Device 11 | . 13 11 9 Storage 11 | . 14 11 11 Protection 6 | . . 8 4 Energy Gun 7 | . 27 1 8 Ballistic Gun 15 | . . 20 8 Naked Turns . | . . . . Heaviest Build 20 | 13 14 20 20 Greatest Support 26 | 26 26 26 20 Greatest Overweight (x) 1 | 1 . 1 1 Average Overweight (x) . | . . . . Largest Inventory Capacity 6 | 6 6 6 6 Average Capacity 5 | 5 6 6 6 Most Carried 6 | 4 5 6 6 Average Carried 5 | 3 4 5 5 Final Capacity 6 | 6 6 6 6 Final Carried 6 | 4 4 6 2 Class Distribution -------------------- 58% | Mutant 41% | Scavenger-Mutant Dominant Class ---------------- Mutant | -10/Materials Scavenger-Mutant | -9/Materials Mutant | -9/Mines Resources | -11 -10 -9 -9 ----------- Run | Scr Mat Mat Min Matter Collected 563 | 186 109 268 . Remotely . | . . . . Salvage Created 712 | . 222 428 62 Parts 41 | . 16 25 . Haulers Intercepted 2 | . 1 1 . Recyclers Shooed . | . . . . Parts Field Recycled . | . . . . Retrieved Matter . | . . . . Parts Self-Destructed . | . . . . Prevented . | . . . . Kills | -11 -10 -9 -9 ------- Run | Scr Mat Mat Min Combat Hostiles Destroyed 17 | . 4 9 4 Guns 17 | . 4 9 4 Classes Destroyed 6 | . 2 3 1 Builder 1 | . . 1 . Hauler 2 | . 1 1 . Grunt 10 | . 4 6 . Duelist 1 | . . 1 . Sentry 2 | . . 2 . Assembled 4 | . . . 4 Best Kill Streak 5 | . 2 5 4 Combat Bots Only 5 | . 2 5 4 Max Kills in Single Turn 1 | . 1 1 1 Gunslinging . | . . . . Exploded . | . . . . Melee . | . . . . Uniques/NPCs Destroyed . | . . . . Combat | -11 -10 -9 -9 -------- Run | Scr Mat Mat Min Damage Taken 1487 | . 154 398 935 Core 446 | . 31 86 329 Absorbed by Shields . | . . . . Core Remaining (%) 93 | 100 87 . . Volleys Fired 58 | . 17 28 13 Largest 2 | . 2 2 2 Hottest 90 | . 90 46 68 Shots Fired 115 | . 33 56 26 Gun 115 | . 33 56 26 Cannon . | . . . . Launcher . | . . . . Special . | . . . . Kinetic 69 | . . 56 13 Thermal 16 | . 16 . . Explosive . | . . . . Electromagnetic 30 | . 17 . 13 Robot Hit Streak 10 | . 7 10 9 Robot Miss Streak 4 | . 2 2 4 Penetration Max . | . . . . Secondary Targets 3 | . . 1 2 Max Gunslinging Chain 1 | . . 1 1 Shots Hit Robots 89 | . 23 44 22 Core Hits 41 | . 8 23 10 Critical Hits . | . . . . Critical Kills . | . . . . Critical Parts Destroyed . | . . . . Melee Attacks . | . . . . Impact . | . . . . Slashing . | . . . . Piercing . | . . . . Sneak Attacks . | . . . . Combat Hostiles . | . . . . Follow-up Attacks . | . . . . Damage Inflicted 1079 | . 300 592 187 Guns 1079 | . 300 592 187 Cannons . | . . . . Explosions . | . . . . Melee . | . . . . Ramming . | . . . . Kinetic 667 | . . 592 75 Thermal 113 | . 113 . . Explosive . | . . . . Electromagnetic 299 | . 187 . 112 Impact . | . . . . Slashing . | . . . . Piercing . | . . . . Highest Corruption . | . . . . Average Corruption . | . . . . Corruption Purged . | . . . . Overload Shots . | . . . . Overflow Damage . | . . . . Projectiles . | . . . . Explosions . | . . . . Melee . | . . . . Knockbacks . | . . . . Impact . | . . . . Kinetic . | . . . . Secondary . | . . . . Self-Inflicted Damage . | . . . . Shots . | . . . . Rammed . | . . . . Targets Rammed . | . . . . Kicked . | . . . . Crushed . | . . . . Highest Temperature 442 | . 244 442 120 Average Temperature 112 | . 106 191 75 Received Heat Transfer 348 | . 84 144 120 Effects 1 | . 1 . . Energy Bleed 1 | . 1 . . Siege Activations . | . . . . Robots Corrupted . | . . . . Combat Hostiles . | . . . . Parts Fried 1 | . 1 . . Impact Corruptions . | . . . . Robots Melted . | . . . . Combat Hostiles . | . . . . Parts Melted . | . . . . Heat Transferred 333 | . 333 . . Parts Sabotaged . | . . . . Parts Stolen . | . . . . Parts Stripped . | . . . . Power Chain Reactions . | . . . . Missiles Intercepted . | . . . . Alert | -11 -10 -9 -9 ------- Run | Scr Mat Mat Min Peak Influence 244 | . 121 244 36 Initial 50 | . . 50 36 Average 83 | . 60 108 20 Maximum Alert Level 1 | . . 1 . Low Security (%) 80 | 100 100 69 100 Level 1 19 | . . 30 . Level 2 . | . . . . Level 3 . | . . . . Level 4 . | . . . . Level 5 . | . . . . High Security . | . . . . Max Security . | . . . . Squads Dispatched 2 | . . 2 . Investigation 1 | . . 1 . Extermination . | . . . . Reinforcement 1 | . . 1 . Assault . | . . . . Garrison . | . . . . Intercept . | . . . . Construction Impeded . | . . . . Haulers Reinforced . | . . . . Stealth | -11 -10 -9 -9 --------- Run | Scr Mat Mat Min Distress Signals 2 | . 1 1 . Communications Jammed . | . . . . Distress Signals . | . . . . Times Spotted 39 | . 6 19 14 Peak Tracking Total 8 | . 4 5 8 Tactical Retreats 1 | . . . 1 Traps | -11 -10 -9 -9 ------- Run | Scr Mat Mat Min Traps Triggered 1 | . . 1 . Indirectly . | . . . . Trap Hack Attempts . | . . . . Triggered . | . . . . Disarmed . | . . . . Reprogrammed 4 | . . 4 . Reused . | . . . . Traps Extracted . | . . . . Installed . | . . . . Triggered . | . . . . Machines | -11 -10 -9 -9 ---------- Run | Scr Mat Mat Min Machines Disabled . | . . . . Max in Single Turn . | . . . . Machines Sabotaged . | . . . . Garrisons Compromised . | . . . . Overloaded Fab Kills . | . . . . Fab Network Shutdowns . | . . . . Hacking | -11 -10 -9 -9 --------- Run | Scr Mat Mat Min Machines Accessed 8 | . 1 7 . Terminals 7 | . 1 6 . Fabricators . | . . . . Repair Stations . | . . . . Recycling Units 1 | . . 1 . Scanalyzers . | . . . . Garrison Access . | . . . . Total Hacks 37 | . 4 33 . Successful 21 | . 1 20 . Failed 16 | . 3 13 . Catastrophic 2 | . . 2 . Database Lockouts . | . . . . Manual 26 | . 4 22 . Terminals 35 | . 4 31 . Fabricators . | . . . . Repair Stations . | . . . . Recycling Units 2 | . . 2 . Scanalyzers . | . . . . Garrison Access . | . . . . Terminal Hacks 12 | . . 12 . Record 1 | . . 1 . Branch Access Points 1 | . . 1 . Terminal Index 1 | . . 1 . Fabricator Index 1 | . . 1 . Unreport Threat 4 | . . 4 . Reprogram Traps 1 | . . 1 . Investigation Status 1 | . . 1 . Recall Investigation 1 | . . 1 . Zone Layout 1 | . . 1 . Fabricator Hacks . | . . . . Repair Station Hacks . | . . . . Recycling Unit Hacks 1 | . . 1 . Report Inventory 1 | . . 1 . Scanalyzer . | . . . . Garrison Access Hacks . | . . . . Unauthorized Hacks 8 | . 1 7 . Terminals 8 | . 1 7 . Track 2 | . . 2 . Assimilate 1 | . . 1 . Botnet 4 | . 1 3 . Operators 1 | . . 1 . Fabricators . | . . . . Repair Stations . | . . . . Recycling Units . | . . . . Scanalyzers . | . . . . Garrison Access . | . . . . Data Cores Recovered . | . . . . Used . | . . . . Hacking Detections 7 | . 1 6 . Full Trace Events . | . . . . Feedback Events . | . . . . Feedback Blocked . | . . . . Robot Schematics Acquired . | . . . . Robots Built . | . . . . Matter . | . . . . Time . | . . . . Total Robot Build Rating . | . . . . Part Schematics Acquired . | . . . . Parts Built . | . . . . Matter . | . . . . Time . | . . . . Total Part Build Rating . | . . . . Parts Repaired . | . . . . Time . | . . . . Parts Recycled . | . . . . Recycled Matter . | . . . . Retrieved Matter . | . . . . Retrieved Components . | . . . . Parts Scanalyzed . | . . . . Part Schematics Acquired . | . . . . Parts Damaged . | . . . . Bothacking | -11 -10 -9 -9 ------------ Run | Scr Mat Mat Min Used RIF Installer . | . . . . Robots Hacked . | . . . . Non-combat . | . . . . Combat . | . . . . Robot Hacks Applied . | . . . . Relay Couplers Released . | . . . . Robots Rewired . | . . . . Allies Hacked . | . . . . Hacks Repelled . | . . . . Allies | -11 -10 -9 -9 -------- Run | Scr Mat Mat Min Total Allies . | . . . . Largest Group . | . . . . Highest-Rated Group . | . . . . Highest-Rated Ally . | . . . . Total Orders . | . . . . Ally Attacks . | . . . . Total Damage . | . . . . Kills . | . . . . Allies Corrupted . | . . . . Allies Melted . | . . . . Intel | -11 -10 -9 -9 ------- Run | Scr Mat Mat Min Robot Analysis Total . | . . . . Derelict Logs Recovered . | . . . . Drone Launches . | . . . . Drone Recoveries . | . . . . Exploration | -11 -10 -9 -9 ------------- Run | Scr Mat Mat Min Turns Passed 961 | 79 184 624 74 Spaces Moved 530 | 73 106 334 17 Core 10 | 9 . . 1 Treads 5 | . . . 5 Legs . | . . . . Wheels 515 | 64 106 334 11 Hover . | . . . . Flight . | . . . . Fastest Speed 50 | 50 90 90 100 Average Speed 100 | 85 90 106 124 Slowest Speed 160 | 90 90 110 160 Overloaded Moves . | . . . . Propulsion Burnouts . | . . . . Robots Hopped . | . . . . Cave-ins Triggered . | . . . . Exploration Rate (%) 20 | 5 28 33 14 Regions Visited 3 Branch Regions 1 Pre-discovered Areas 1 | . . . 1 Known Exits Taken 1 | . . 1 . Unknown Exits Taken 2 | 1 1 . . Scrap Searched . | . . . . Spaces Dug . | . . . . Terrain Destroyed . | . . . . Melee . | . . . . Projectile . | . . . . AOE . | . . . . Terrain Rammed . | . . . . Walls Destroyed . | . . . . Machines Disabled . | . . . . Actions | -11 -10 -9 -9 --------- Run | Scr Mat Mat Min Total 844 | 88 161 550 45 Wait 200 | 1 32 158 9 Move 527 | 72 105 333 17 Hop . | . . . . Pick Up 17 | 8 3 6 . Fast Attach 10 | 2 . 8 . Attach 10 | 4 2 . 4 Detach . | . . . . Swap 7 | 1 1 4 1 Drop 15 | . 1 13 1 Fire 58 | . 17 28 13 Melee . | . . . . Ram . | . . . . Kick . | . . . . Crush . | . . . . Escape Stasis . | . . . . Rewire . | . . . . Trap . | . . . . Miscellaneous . | . . . . Route ------- -11/Scrapyard -10/Materials -9/Materials (discovered 3 exits: [*Mat] / *Min x2) -9/Mines History --------- Turn | Location | Event 9 | -11/Scrapyard | Discovered new exit (range 15) 80 | -11/Scrapyard | Entered Materials 251 | -10/Materials | Discovered new exit (range 16) 264 | -10/Materials | Entered another Materials area 264 | -9/Materials | Evolved 2 slots: Utility x2 310 | -9/Materials | Build established: Mutant 522 | -9/Materials | Identified exit to Mines 605 | -9/Materials | Discovered new exit (range 11) 680 | -9/Materials | Build established: Scavenger-Mutant 888 | -9/Materials | Entered Mines 889 | -9/Mines | Learned location of Storage (-7) 896 | -9/Mines | Assembled infested the area 950 | -9/Mines | Core integrity fell below 50% 962 | -9/Mines | Destroyed by D-53 Grenadier with Mini Grenade Launcher Last Messages --------------- as-15924 destroyed. Switching to secondary target: as-38623. as-38623 destroyed. as-44017 destroyed. Com. Wheel destroyed. Lgt. Treads destroyed. as-83926 destroyed. Switching to secondary target: as-04642. as-75044 destroyed. Imp. EM Shotgun destroyed. as-40360 destroyed. Dropped Shotgun. as-04642 destroyed. as-51758 destroyed. Sensor Array destroyed. as-62317 destroyed. The unstable cave ceiling collapses. Lgt. Treads destroyed. Hvy. Ion Engine destroyed. The unstable cave ceiling collapses. Map ----- +----------------------------------------------------+ | | | | | | | | | | | | | | | | | ?????????????????????????????????????????????????? | | ?????????????????????????????????????????????????? | | ?????????????????????????????????????????????????? | | ?????????????????????????????????????????????????? | | ?????????????????????????????????????????????????? | | ?????????????????????????????????????????????????? | | ????????????????????###?????????? ??????????????? | | ???????????????????## #????????? ??????????????? | | ??????????????????## ???????? ????#####??????? | | ??????????????????? #??????? ???## ###????? | | ???????????????????# ##???? #??## ##???? | | ???????????????????# #???? #?## #???? | | ????????????????????# #???? #?# #????? | | ????????????????????# ###? #??# #????? | | ????????????????????# ## ###### ##????? | | ????????????????????# # #### ####?????? | | ????????????????????# ### ##????????? | | ????????????????????# @ #?????????? | | ????????????????????# #?????????? | | ????????????????????# ####?????????? | | ????????????????????# #????????????? | | ????????????????????# ##????????????? | | ???????????????????# d #?????????????? | | ???????????????????# ####?????????????? | | ???????????????????# % d #????????????????? | | ?????????????????? #????????????????? | | ???????????????? #????????????????? | | ????????????????## # % #????????????????? | | ?????????????????# #### #????????????????? | | ?????????????????## ??## #% #????????????????? | | ??????????????????## ??? ### ###????????????????? | | ???????????????????##???? ??# #??????????????????? | | ????????????????????????? ??? #??????????????????? | | ????????????????????????? ??? #??????????????????? | | ????????????????????????????? ???????????????????? | | ?????????????????????????????????????????????????? | | ?????????????????????????????????????????????????? | | ?????????????????????????????????????????????????? | | ?????????????????????????????????????????????????? | | ?????????????????????????????????????????????????? | | ?????????????????????????????????????????????????? | | ?????????????????????????????????????????????????? | +----------------------------------------------------+ Best States ------------- Heat Dissipation 28 Energy Generation 14 Energy Capacity 280 Matter Stores 300 Matter Capacity 300 Sight Range 16 Robot Scan Range 10 Terrain Scan Density 10 Core Shielding 20 Evasion (%) 50 Recoil Reduction 1 Item Schematics ----------------- None Robot Schematics ------------------ None Fabricated ------------ Nothing Alien Tech Used ----------------- None Achievements -------------- None Challenges ------------ None Game ------ Seed NovaHypervelocityInitializer Manual? 0 Play Time 00:17:40 Cumulative 74.1 hours Start 2020.11.03 @ 14:10:59 End 2020.11.03 @ 14:34:25 Sessions 1 Manual Loads 0 Difficulty Rogue Special Mode Halloween2020/ForbiddenLore Game No. 110 Rogue 76 Adventurer 11 Explorer 23 Win Type - Total 0 Types 0/0/0/0/0/0/0/0/0 Lore% 28 Gallery% 59 Achievement% 33 Wizard Run 0 Options --------- ASCII 0 Keyboard 0 Movement Mouse Keybinds 0 Fullscreen 2 Font 14/SmallcapsGlow Map View 84x54 Tactical HUD 0 Map Filters NONE Filters NONE Steam 1 RUN: 749aa240-5509-4a8c-aed7-8f65f7bea2b6